fUSD/lending_fUSD_20251228
["ID","MTS","AMOUNT","RATE_DAILY","PERIOD"]
[399971186,1766957442040,-150.0,0.00015751,2]
[399971187,1766957442050,-150.0,0.00015751,2]
[399971188,1766957442060,-178.0,0.00015753,2]
[399971189,1766957442071,-150.0,0.00015753,2]
[399971190,1766957442080,-150.0,0.00015765,2]
[399971191,1766957442089,-150.0,0.00015768,2]
[399971192,1766957442099,-150.0,0.00015773,2]
[399971193,1766957442108,-150.0,0.00015773,2]
[399971194,1766957442118,-201.8815823,0.00015775,2]
[399971195,1766957442127,-150.0,0.00015781,2]
[399971196,1766957442136,-500.0,0.00015782,2]
[399971197,1766957442146,-1707.45,0.00015782,2]
[399971198,1766957442155,-14454.57632848,0.00015789,2]
[399971199,1766957442164,-150.0,0.00015797,2]
[399971200,1766957442174,-150.0,0.00015802,2]
[399971201,1766957442183,-150.0,0.00015805,2]
[399971202,1766957442192,-150.0,0.00015805,2]
[399971203,1766957442202,-150.0,0.00015808,2]
[399971204,1766957442212,-150.0,0.00015818,2]
[399971205,1766957442221,-150.0,0.00015822,2]
[399971206,1766957442231,-150.0,0.00015836,2]
[399971207,1766957442240,-150.0,0.00015842,2]
[399971208,1766957442249,-150.0,0.00015854,2]
[399971209,1766957442259,-150.0,0.00015854,2]
[399971210,1766957442268,-150.0,0.00015854,2]
[399971211,1766957442277,-150.0,0.00015854,2]
[399971212,1766957442287,-150.0,0.00015863,2]
[399971213,1766957442296,-150.0,0.0001587,2]
[399971214,1766957442305,-150.0,0.00015872,2]
[399971215,1766957442316,-150.0,0.00015878,2]
[399971216,1766957442325,-150.0,0.00015878,2]
[399971218,1766957442334,-150.0,0.0001589,2]
[399971219,1766957442342,-172.21833333,0.000159,2]
[399971221,1766957442351,-433.0,0.00015905,2]
[399971223,1766957442361,-150.0,0.00015905,2]
[399971224,1766957442370,-150.0,0.00015905,2]
[399971225,1766957442379,-150.0,0.00015915,2]
[399971226,1766957442389,-150.0,0.00015918,2]
[399971227,1766957442398,-150.0,0.00015919,2]
[399971229,1766957442408,-500.0,0.00015921,2]
[399971231,1766957442417,-150.0,0.00015925,2]
[399971232,1766957442427,-150.0,0.00015925,2]
[399971234,1766957442437,-150.0,0.00015935,2]
[399971236,1766957442446,-150.0,0.00015945,2]
[399971238,1766957442456,-150.0,0.00015952,2]
[399971240,1766957442466,-150.0,0.00015952,2]
[399971242,1766957442476,-150.0,0.00015957,2]
[399971244,1766957442486,-150.0,0.00015967,2]
[399971246,1766957442495,-150.0,0.00015967,2]
[399971247,1766957442505,-150.0,0.00015967,2]
[399971248,1766957442515,-500.0,0.00015973,2]
[399971249,1766957442525,-511.82107275,0.00015973,2]
[399971250,1766957442534,-150.0,0.00015973,2]
[399971251,1766957442544,-200.27562112,0.00015973,2]
[399971252,1766957442554,-163.47849716,0.00015973,2]
[399971253,1766957442562,-500.0,0.00015973,2]
[399971254,1766957442572,-502.71159199,0.00015973,2]
[399971255,1766957442581,-500.0,0.00015973,2]
[399971256,1766957442591,-413.88399981,0.00015973,2]
[399971257,1766957442600,-500.0,0.00015973,2]
[399971258,1766957442609,-500.0,0.00015973,2]
[399971259,1766957442618,-500.0,0.00015973,2]
[399971260,1766957442627,-500.0,0.00015973,2]
[399971261,1766957442637,-150.0,0.00015978,2]
[399971262,1766957442646,-150.0,0.00015989,2]
[399971263,1766957442655,-150.0,0.00016,2]
[399971264,1766957442664,-16961.26309548,0.00016,2]
[399971265,1766957442675,-114467.83555121,0.00016,2]
[399971266,1766957442683,-17005.83516608,0.00016,2]
[399971267,1766957442693,-42413.38531049,0.00016,4]
[399971268,1766957442702,-150.0,0.00016008,2]
[399971269,1766957442711,-14454.57632848,0.00016011,2]
[399971270,1766957442720,-150.0,0.00016016,2]
[399971271,1766957442730,-150.0,0.00016016,2]
[399971272,1766957442743,-150.0,0.00016026,2]
[399971273,1766957442753,-150.0,0.00016026,2]
[399971274,1766957442763,-150.0,0.00016027,2]
[399971275,1766957442772,-150.0,0.00016031,2]
[399971276,1766957442781,-567.42279492,0.00016052,2]
[399971277,1766957442791,-150.0,0.00016055,2]
[399971278,1766957442800,-178.0,0.00016055,2]
[399971279,1766957442809,-195.54717431,0.00016056,2]
[399971280,1766957442821,-1707.45,0.00016056,2]
[399971281,1766957442832,-150.0,0.0001606,2]
[399971282,1766957442842,-150.0,0.0001606,2]
[399971283,1766957442854,-150.0,0.00016063,2]
[399971284,1766957442864,-150.0,0.00016064,2]
[399971285,1766957442873,-153.05051892,0.00016073,2]
[399971286,1766957442883,-150.0,0.0001608,2]
[399971287,1766957442892,-150.0,0.00016082,2]
[399971288,1766957442901,-150.0,0.00016084,2]
[399971289,1766957442910,-150.0,0.00016097,2]
[399971290,1766957442920,-150.0,0.000161,2]
[399971291,1766957442928,-150.0,0.000161,2]
[399971292,1766957442937,-150.0,0.0001611,2]
[399971293,1766957442949,-150.0,0.00016111,2]
[399971294,1766957442959,-150.0,0.00016113,2]
[399971295,1766957442970,-150.0,0.00016137,2]
[399971296,1766957442981,-150.0,0.00016137,2]
[399971297,1766957442991,-150.0,0.00016137,2]
[399971298,1766957443000,-150.0,0.00016137,2]
[399971299,1766957443010,-150.0,0.00016137,2]
[399971300,1766957443020,-150.0,0.00016137,2]
[399971301,1766957443029,-150.0,0.00016137,2]
[399971302,1766957443039,-322.6107,0.0001614,2]
[399971303,1766957443048,-250.0,0.0001614,2]
[399971304,1766957443058,-500.0,0.0001614,2]
[399971305,1766957443067,-553.64373807,0.0001614,2]
[399971306,1766957443076,-284.76184806,0.0001614,2]
[399971307,1766957443085,-500.0,0.0001614,2]
[399971308,1766957443094,-500.0,0.0001614,2]
[399971309,1766957443103,-500.0,0.0001614,2]
[399971310,1766957443112,-500.0,0.0001614,2]
[399971311,1766957443122,-500.0,0.0001614,2]
[399971312,1766957443133,-500.0,0.0001614,2]
[399971313,1766957443143,-642.94,0.0001614,2]
[399971314,1766957443153,-153.47713146,0.0001614,2]
[399971315,1766957443163,-500.0,0.0001614,2]
[399971316,1766957443173,-500.0,0.0001614,2]
[399971317,1766957443182,-500.0,0.0001614,2]
[399971318,1766957443193,-500.0,0.0001614,2]
[399971319,1766957443202,-500.0,0.0001614,2]
[399971321,1766957443211,-500.0,0.0001614,2]
[399971323,1766957443220,-500.0,0.0001614,2]
[399971325,1766957443230,-500.0,0.0001614,2]
[399971328,1766957443239,-500.0,0.0001614,2]
[399971331,1766957443249,-500.0,0.0001614,2]
[399971333,1766957443258,-500.0,0.0001614,2]
[399971336,1766957443267,-500.0,0.0001614,2]
[399971339,1766957443276,-500.0,0.0001614,2]
[399971342,1766957443285,-500.0,0.0001614,2]
[399971343,1766957443294,-500.0,0.0001614,2]
[399971345,1766957443302,-500.0,0.0001614,2]
[399971347,1766957443313,-500.0,0.0001614,2]
[399971350,1766957443325,-250.0,0.0001614,2]
[399971352,1766957443336,-500.0,0.0001614,2]
[399971354,1766957443346,-500.0,0.0001614,2]
[399971355,1766957443355,-250.0,0.0001614,2]
[399971358,1766957443366,-500.0,0.0001614,2]
[399971360,1766957443375,-500.0,0.0001614,2]
[399971362,1766957443384,-250.0,0.0001614,2]
[399971364,1766957443395,-500.0,0.0001614,2]
[399971365,1766957443404,-250.0,0.0001614,2]
[399971366,1766957443413,-259.6625457,0.0001614,2]
[399971367,1766957443422,-201.93286099,0.0001614,2]
[399971368,1766957443431,-250.0,0.0001614,2]
[399971369,1766957443440,-250.0,0.0001614,2]
[399971370,1766957443450,-250.0,0.0001614,2]
[399971371,1766957443459,-250.0,0.0001614,2]
[399971372,1766957443469,-250.0,0.0001614,2]
[399971373,1766957443479,-250.0,0.0001614,2]
[399971374,1766957443490,-500.0,0.0001614,2]
[399971375,1766957443500,-320.1146403,0.0001614,2]
[399971376,1766957443509,-250.0,0.0001614,2]
[399971377,1766957443518,-250.0,0.0001614,2]
[399971378,1766957443526,-200.0,0.0001614,2]
[399971379,1766957443535,-207.4,0.0001614,2]
[399971380,1766957443544,-215.0738,0.0001614,2]
[399971381,1766957443554,-500.0,0.0001614,2]
[399971382,1766957443562,-223.0315306,0.0001614,2]
[399971383,1766957443571,-1000.0,0.0001614,2]
[399971384,1766957443582,-500.0,0.0001614,2]
[399971385,1766957443590,-231.28369723,0.0001614,2]
[399971386,1766957443600,-1000.0,0.0001614,2]
[399971387,1766957443610,-500.0,0.0001614,2]
[399971388,1766957443622,-239.84119403,0.0001614,2]
[399971389,1766957443633,-500.0,0.0001614,2]
[399971390,1766957443643,-248.71531821,0.0001614,2]
[399971391,1766957443653,-282.13607366,0.0001614,2]
[399971392,1766957443662,-257.91778498,0.0001614,2]
[399971393,1766957443671,-267.46074303,0.0001614,2]
[399971394,1766957443680,-150.0,0.00016161,2]
[399971395,1766957443688,-150.0,0.00016163,2]
[399971396,1766957443697,-150.0,0.00016164,2]
[399971397,1766957443706,-554.64,0.00016164,2]
[399971398,1766957443715,-930.56,0.00016164,2]
[399971399,1766957443723,-554.64,0.00016164,2]
[399971400,1766957443733,-554.64,0.00016164,2]
[399971401,1766957443743,-150.0,0.00016174,2]
[399971402,1766957443753,-150.0,0.00016174,2]
[399971403,1766957443763,-150.0,0.00016177,2]
[399971404,1766957443774,-150.0,0.0001619,2]
[399971405,1766957443786,-150.0,0.00016192,2]
[399971406,1766957443797,-150.0,0.00016194,2]
[399971407,1766957443811,-141774.55699608,0.000162,5]
[399971408,1766957443821,-587.0,0.00016206,2]
[399971409,1766957443831,-587.0,0.00016206,2]
[399971410,1766957443843,-150.0,0.0001621,2]
[399971411,1766957443853,-150.0,0.00016211,2]
[399971412,1766957443862,-150.0,0.00016214,2]
[399971413,1766957443872,-150.0,0.00016214,2]
[399971414,1766957443881,-2000.0,0.00016216,2]
[399971415,1766957443891,-2000.0,0.00016216,2]
[399971416,1766957443902,-2000.0,0.00016216,2]
[399971417,1766957443913,-2000.0,0.00016216,2]
[399971418,1766957443923,-2000.0,0.00016216,2]
[399971419,1766957443934,-2000.0,0.00016216,2]
[399971420,1766957443944,-2000.0,0.00016216,2]
[399971421,1766957443955,-2000.0,0.00016216,2]
[399971422,1766957443966,-150.0,0.00016219,2]
[399971423,1766957443977,-172.21833333,0.00016233,2]
[399971424,1766957443988,-14454.57632848,0.00016233,2]
[399971425,1766957443999,-150.0,0.00016243,2]
[399971426,1766957444009,-150.0,0.00016247,2]
[399971427,1766957444020,-150.0,0.00016248,2]
[399971428,1766957444032,-150.0,0.00016248,2]
[399971429,1766957444042,-150.0,0.00016258,2]
[399971430,1766957444054,-150.0,0.00016258,2]
[399971431,1766957444065,-150.0,0.00016266,2]
[399971432,1766957444076,-150.0,0.00016274,2]
[399971433,1766957444086,-150.0,0.00016285,2]
[399971434,1766957444097,-635.40285839,0.00016286,2]
[399971435,1766957444108,-150.0,0.00016296,2]
[399971436,1766957444119,-1000.0,0.000163,2]
[399971437,1766957444129,-500.0,0.00016301,2]
[399971438,1766957444139,-150.0,0.00016301,2]
[399971439,1766957444151,-150.0,0.00016307,2]
[399971440,1766957444160,-150.0,0.00016307,2]
[399971441,1766957444171,-150.0,0.00016307,2]
[399971442,1766957444181,-150.0,0.00016317,2]
[399971443,1766957444192,-2351.0,0.0001632,2]
[399971444,1766957444203,-150.0,0.00016322,2]
[399971445,1766957444214,-150.0,0.00016322,2]
[399971447,1766957444225,-208.86276468,0.00016322,2]
[399971448,1766957444235,-150.0,0.00016329,2]
[399971449,1766957444246,-1707.45,0.0001633,2]
[399971450,1766957444256,-150.0,0.00016339,2]
[399971451,1766957444267,-154.03,0.00016345,2]
[399971452,1766957444277,-150.0,0.00016349,2]
[399971453,1766957444287,-150.0,0.00016349,2]
[399971454,1766957444297,-150.0,0.00016355,2]
[399971455,1766957444307,-150.0,0.00016356,2]
[399971456,1766957444318,-150.0,0.00016359,2]
[399971457,1766957444328,-150.0,0.00016369,2]
[399971458,1766957444338,-150.0,0.00016369,2]
[399971459,1766957444348,-919.0,0.00016379,2]
[399971460,1766957444359,-152.09829773,0.00016382,2]
[399971461,1766957444370,-150.0,0.00016384,2]
[399971462,1766957444381,-150.0,0.00016395,2]
[399971463,1766957444395,-150.0,0.00016395,2]
[399971464,1766957444407,-1000.0,0.000164,2]
[399971465,1766957444417,-150.0,0.00016402,2]
[399971466,1766957444428,-150.0,0.00016404,2]
[399971467,1766957444438,-150.0,0.00016411,2]
[399971468,1766957444450,-150.0,0.0001642,2]
[399971469,1766957444462,-150.0,0.0001642,2]
[399971470,1766957444473,-150.0,0.0001642,2]
[399971471,1766957444484,-150.0,0.0001642,2]
[399971472,1766957444495,-296.67,0.00016431,2]
[399971473,1766957444507,-150.0,0.00016432,2]
[399971474,1766957444520,-165.243213,0.00016438,2]
[399971475,1766957444533,-151.0,0.00016438,2]
[399971476,1766957444545,-151.0,0.00016438,2]
[399971477,1766957444557,-151.0,0.00016438,2]
[399971478,1766957444568,-165.243213,0.00016438,2]
[399971479,1766957444580,-165.243213,0.00016438,2]
[399971480,1766957444591,-165.243213,0.00016438,2]
[399971481,1766957444603,-204.786241,0.00016438,2]
[399971482,1766957444614,-204.786241,0.00016438,2]
[399971483,1766957444625,-204.786241,0.00016438,2]
[399971484,1766957444637,-204.786241,0.00016438,2]
[399971485,1766957444647,-500.0,0.00016438,2]
[399971486,1766957444660,-500.0,0.00016438,2]
[399971487,1766957444672,-500.0,0.00016438,2]
[399971488,1766957444682,-500.0,0.00016438,2]
[399971489,1766957444693,-500.0,0.00016438,2]
[399971490,1766957444706,-500.0,0.00016438,2]
[399971491,1766957444718,-500.0,0.00016438,2]
[399971492,1766957444732,-500.0,0.00016438,2]
[399971493,1766957444747,-500.0,0.00016438,2]
[399971494,1766957444759,-500.0,0.00016438,2]
[399971495,1766957444771,-500.0,0.00016438,2]
[399971496,1766957444783,-500.0,0.00016438,2]
[399971497,1766957444796,-500.0,0.00016438,2]
[399971498,1766957444807,-500.0,0.00016438,2]
[399971499,1766957444819,-500.0,0.00016438,2]
[399971500,1766957444834,-500.0,0.00016438,2]
[399971501,1766957444844,-500.0,0.00016438,2]
[399971502,1766957444855,-500.0,0.00016438,2]
[399971503,1766957444866,-500.0,0.00016438,2]
[399971504,1766957444877,-500.0,0.00016438,2]
[399971505,1766957444889,-500.0,0.00016438,2]
[399971506,1766957444901,-500.0,0.00016438,2]
[399971507,1766957444912,-500.0,0.00016438,2]
[399971508,1766957444923,-500.0,0.00016438,2]
[399971509,1766957444934,-500.0,0.00016438,2]
[399971510,1766957444946,-500.0,0.00016438,2]
[399971511,1766957444960,-500.0,0.00016438,2]
[399971512,1766957444972,-500.0,0.00016438,2]
[399971513,1766957444985,-500.0,0.00016438,2]
[399971515,1766957444994,-500.0,0.00016438,2]
[399971517,1766957445004,-500.0,0.00016438,2]
[399971520,1766957445014,-500.0,0.00016438,2]
[399971523,1766957445024,-500.0,0.00016438,2]
[399971526,1766957445034,-500.0,0.00016438,2]
[399971528,1766957445044,-500.0,0.00016438,2]
[399971530,1766957445053,-500.0,0.00016438,2]
[399971531,1766957445062,-500.0,0.00016438,2]
[399971532,1766957445072,-500.0,0.00016438,2]
[399971533,1766957445083,-500.0,0.00016438,2]
[399971534,1766957445095,-500.0,0.00016438,2]
[399971535,1766957445107,-500.0,0.00016438,2]
[399971536,1766957445118,-500.0,0.00016438,2]
[399971537,1766957445130,-500.0,0.00016438,2]
[399971538,1766957445141,-500.0,0.00016438,2]
[399971539,1766957445152,-500.0,0.00016438,2]
[399971540,1766957445162,-150.0,0.00016438,2]
[399971541,1766957445174,-216.573299,0.00016438,2]
[399971542,1766957445184,-1607.9,0.00016443,2]
[399971543,1766957445194,-150.0,0.00016452,2]
[399971544,1766957445205,-150.0,0.00016455,2]
[399971545,1766957445215,-150.0,0.00016466,2]
[399971546,1766957445226,-150.0,0.00016469,2]
[399971547,1766957445237,-150.0,0.00016469,2]
[399971548,1766957445247,-150.0,0.00016472,2]
[399971549,1766957445259,-567.42279492,0.00016476,2]
[399971550,1766957445270,-150.0,0.00016477,2]
[399971551,1766957445280,-150.0,0.00016493,2]
[399971552,1766957445291,-1607.9,0.00016494,2]
[399971553,1766957445301,-150.0,0.00016501,2]
[399971554,1766957445311,-150.0,0.00016501,2]
[399971555,1766957445321,-150.0,0.00016506,2]
[399971556,1766957445331,-150.0,0.00016509,2]
[399971557,1766957445340,-150.0,0.00016521,2]
[399971558,1766957445350,-443.51805555,0.00016521,2]
[399971559,1766957445361,-1000.0,0.00016521,2]
[399971560,1766957445371,-503.73099585,0.00016521,2]
[399971561,1766957445381,-1000.0,0.00016521,2]
[399971562,1766957445390,-150.0,0.00016523,2]
[399971564,1766957445401,-150.0,0.00016523,2]
[399971566,1766957445410,-919.0,0.00016532,2]
[399971568,1766957445421,-150.0,0.00016533,2]
[399971569,1766957445431,-150.0,0.00016543,2]
[399971570,1766957445441,-150.0,0.00016543,2]
[399971571,1766957445452,-1607.9,0.00016544,2]
[399971572,1766957445461,-150.0,0.00016548,2]
[399971573,1766957445472,-150.0,0.0001655,2]
[399971574,1766957445483,-150.0,0.00016562,2]
[399971575,1766957445495,-150.0,0.00016562,2]
[399971576,1766957445506,-172.21833333,0.00016567,2]
[399971577,1766957445516,-150.0,0.00016575,2]
[399971578,1766957445528,-150.0,0.00016575,2]
[399971579,1766957445540,-150.0,0.0001658,2]
[399971580,1766957445552,-150.0,0.00016582,2]
[399971581,1766957445562,-919.0,0.00016582,2]
[399971582,1766957445573,-1607.9,0.00016595,2]
[399971583,1766957445584,-150.0,0.00016598,2]
[399971584,1766957445594,-150.0,0.00016603,2]
[399971585,1766957445605,-1707.45,0.00016604,2]
[399971586,1766957445616,-150.0,0.00016615,2]
[399971587,1766957445628,-150.0,0.00016617,2]
[399971588,1766957445639,-150.0,0.00016617,2]
[399971589,1766957445649,-893.0,0.00016622,2]
[399971590,1766957445661,-150.0,0.00016626,2]
[399971591,1766957445672,-150.0,0.0001663,2]
[399971592,1766957445682,-151.0,0.00016643,2]
[399971593,1766957445692,-168.0,0.00016644,2]
[399971594,1766957445702,-1607.9,0.00016646,2]
[399971595,1766957445712,-150.0,0.00016647,2]
[399971596,1766957445723,-150.0,0.00016647,2]
[399971597,1766957445734,-150.0,0.00016647,2]
[399971598,1766957445745,-150.0,0.00016654,2]
[399971599,1766957445755,-150.0,0.00016658,2]
[399971600,1766957445767,-919.0,0.00016659,2]
[399971601,1766957445779,-1133.35360397,0.0001666,2]
[399971602,1766957445791,-150.0,0.00016663,2]
[399971603,1766957445802,-150.0,0.00016668,2]
[399971604,1766957445815,-150.0,0.00016677,2]
[399971605,1766957445828,-150.0,0.00016677,2]
[399971606,1766957445838,-150.0,0.00016685,2]
[399971607,1766957445848,-574.12855637,0.00016688,2]
[399971608,1766957445858,-226.50249047,0.00016688,2]
[399971609,1766957445867,-150.0,0.00016691,2]
[399971610,1766957445879,-150.0,0.00016691,2]
[399971612,1766957445890,-150.0,0.00016695,2]
[399971614,1766957445900,-1607.9,0.00016696,2]
[399971616,1766957445909,-150.0,0.00016699,2]
[399971618,1766957445919,-500.0,0.00016699,2]
[399971620,1766957445929,-500.0,0.00016699,2]
[399971622,1766957445939,-150.0,0.00016699,2]
[399971624,1766957445949,-150.0,0.00016699,2]
[399971626,1766957445959,-150.0,0.00016699,2]
[399971629,1766957445968,-244.86390051,0.00016699,2]
[399971631,1766957445978,-150.0,0.00016699,2]
[399971633,1766957445988,-500.0,0.00016699,2]
[399971635,1766957445998,-237.83643607,0.00016699,2]
[399971637,1766957446008,-627.0,0.00016699,2]
[399971639,1766957446018,-500.0,0.00016699,2]
[399971641,1766957446028,-150.0,0.00016699,2]
[399971643,1766957446037,-500.0,0.00016699,2]
[399971645,1766957446047,-150.0,0.00016699,2]
[399971647,1766957446057,-200.0,0.00016699,2]
[399971649,1766957446067,-919.0,0.000167,2]
[399971651,1766957446077,-150.0,0.00016712,2]
[399971653,1766957446087,-150.0,0.00016721,2]
[399971655,1766957446097,-164.91531166,0.00016726,2]
[399971657,1766957446107,-500.0,0.00016726,2]
[399971659,1766957446117,-500.0,0.00016726,2]
[399971661,1766957446128,-150.0,0.00016726,2]
[399971663,1766957446137,-200.0,0.00016726,2]
[399971666,1766957446147,-176.84626368,0.00016726,2]
[399971668,1766957446156,-150.0,0.00016726,2]
[399971670,1766957446167,-500.0,0.00016726,2]
[399971672,1766957446176,-627.0,0.00016726,2]
[399971674,1766957446187,-515.48135853,0.00016726,2]
[399971676,1766957446197,-150.0,0.00016726,2]
[399971678,1766957446206,-500.0,0.00016726,2]
[399971680,1766957446216,-150.0,0.00016726,2]
[399971682,1766957446226,-150.0,0.00016728,2]
[399971684,1766957446236,-150.0,0.00016729,2]
[399971686,1766957446246,-150.0,0.0001674,2]
[399971688,1766957446256,-150.0,0.00016744,2]
[399971690,1766957446266,-150.0,0.00016744,2]
[399971692,1766957446276,-1607.9,0.00016747,2]
[399971694,1766957446286,-500.0,0.00016754,2]
[399971696,1766957446295,-350.0,0.00016754,2]
[399971698,1766957446304,-150.0,0.00016754,2]
[399971701,1766957446314,-500.0,0.00016754,2]
[399971703,1766957446324,-627.0,0.00016754,2]
[399971705,1766957446334,-150.0,0.00016754,2]
[399971707,1766957446344,-500.0,0.00016754,2]
[399971709,1766957446354,-202.90001788,0.00016754,2]
[399971711,1766957446364,-150.0,0.0001676,2]
[399971713,1766957446374,-2500.0,0.00016764,2]
[399971715,1766957446384,-1847.68423544,0.00016764,2]
[399971717,1766957446393,-2500.0,0.00016764,2]
[399971719,1766957446403,-731.96614317,0.00016764,2]
[399971721,1766957446413,-1634.22445627,0.00016764,2]
[399971723,1766957446422,-1718.2586549,0.00016764,2]
[399971726,1766957446432,-1000.0,0.00016764,2]
[399971728,1766957446443,-2500.0,0.00016764,2]
[399971730,1766957446452,-150.0,0.00016765,2]
[399971732,1766957446462,-150.0,0.00016765,2]
[399971733,1766957446472,-150.0,0.00016767,2]
[399971734,1766957446482,-150.0,0.00016774,2]
[399971735,1766957446492,-150.0,0.00016774,2]
[399971736,1766957446503,-150.0,0.0001678,2]
[399971737,1766957446513,-500.0,0.00016781,2]
[399971738,1766957446523,-150.0,0.00016781,2]
[399971739,1766957446533,-594.96387073,0.00016781,2]
[399971740,1766957446543,-627.0,0.00016781,2]
[399971741,1766957446554,-225.38136853,0.00016781,2]
[399971742,1766957446563,-500.0,0.00016781,2]
[399971743,1766957446574,-150.0,0.00016792,2]
[399971744,1766957446583,-150.0,0.00016795,2]
[399971745,1766957446593,-1607.9,0.00016797,2]
[399971746,1766957446603,-203.9629744,0.00016799,2]
[399971747,1766957446612,-150.0,0.00016802,2]
[399971748,1766957446622,-373.98935038,0.00016809,2]
[399971749,1766957446631,-150.0,0.00016809,2]
[399971750,1766957446641,-627.0,0.00016809,2]
[399971751,1766957446651,-500.0,0.00016809,2]
[399971752,1766957446661,-150.0,0.00016816,2]
[399971753,1766957446672,-150.0,0.00016822,2]
[399971754,1766957446682,-150.0,0.00016825,2]
[399971755,1766957446693,-150.0,0.00016827,2]
[399971756,1766957446703,-150.0,0.00016832,2]
[399971757,1766957446715,-150.0,0.00016832,2]
[399971758,1766957446727,-250.0,0.00016836,2]
[399971759,1766957446739,-627.0,0.00016836,2]
[399971760,1766957446748,-500.0,0.00016836,2]
[399971761,1766957446758,-150.0,0.00016839,2]
[399971762,1766957446770,-150.0,0.00016839,2]
[399971763,1766957446782,-150.0,0.00016841,2]
[399971764,1766957446792,-25000.0,0.00016847,3]
[399971765,1766957446803,-1607.9,0.00016848,2]
[399971766,1766957446815,-150.0,0.00016849,2]
[399971767,1766957446825,-25000.0,0.00016856,3]
[399971768,1766957446836,-627.0,0.00016863,2]
[399971769,1766957446847,-361.20663021,0.00016863,2]
[399971770,1766957446858,-25000.0,0.00016865,3]
[399971771,1766957446870,-151.0,0.00016865,2]
[399971772,1766957446880,-151.0,0.00016865,2]
[399971773,1766957447227,-151.0,0.00016865,2]
[399971774,1766957447250,-535.446302,0.00016865,2]
[399971775,1766957447264,-535.446302,0.00016865,2]
[399971776,1766957447274,-535.446302,0.00016865,2]
[399971777,1766957447284,-535.446302,0.00016865,2]
[399971778,1766957447294,-151.0,0.00016865,2]
[399971779,1766957447304,-151.0,0.00016865,2]
[399971780,1766957447315,-151.0,0.00016865,2]
[399971781,1766957447325,-150.0,0.00016873,2]
[399971782,1766957447334,-150.0,0.00016876,2]
[399971783,1766957447346,-150.0,0.00016877,2]
[399971784,1766957447357,-1707.45,0.00016878,2]
[399971785,1766957447368,-150.0,0.0001688,2]
[399971786,1766957447378,-150.0,0.00016883,2]
[399971787,1766957447388,-150.0,0.00016889,2]
[399971788,1766957447398,-627.0,0.00016891,2]
[399971789,1766957447409,-1607.9,0.00016899,2]
[399971790,1766957447420,-153.05051892,0.000169,2]
[399971791,1766957447430,-25000.0,0.000169,3]
[399971792,1766957447439,-172.21833333,0.000169,2]
[399971793,1766957447448,-151.0,0.000169,2]
[399971794,1766957447458,-151.0,0.000169,2]
[399971795,1766957447467,-567.42279492,0.000169,2]
[399971796,1766957447476,-596.76718166,0.000169,2]
[399971797,1766957447485,-352.50332532,0.000169,2]
[399971798,1766957447494,-157.28739986,0.000169,2]
[399971799,1766957447503,-4700.0,0.000169,2]